[Event "Late-Titled-Tuesday-Blitz-February-20-2024"]
[Site "Chess.com"]
[Date "2024.02.20"]
[Round "6"]
[White "MagnusCarlsen"]
[Black "dennisodessa"]
[Result "1-0"]
[WhiteElo "3325"]
[BlackElo "2575"]
[TimeControl "180+1"]
[EndTime "15:04:17 PST"]
[Termination "MagnusCarlsen won on time"]

1. e4 {[%clk 0:02:59.7]} 1... e6 {[%clk 0:02:57.7]} 2. Nf3 {[%clk 0:02:59.8]}
2... d5 {[%clk 0:02:58.3]} 3. Nc3 {[%clk 0:03:00]} 3... Nf6 {[%clk 0:02:57.7]}
4. Qe2 {[%clk 0:03:00.3]} 4... dxe4 {[%clk 0:02:53.4]} 5. Nxe4 {[%clk 0:03:00]}
5... Nbd7 {[%clk 0:02:54]} 6. g3 {[%clk 0:02:59.9]} 6... Nxe4 {[%clk 0:02:53.8]}
7. Qxe4 {[%clk 0:03:00.8]} 7... Nf6 {[%clk 0:02:54.7]} 8. Qe2 {[%clk 0:03:01.3]}
8... b6 {[%clk 0:02:54.1]} 9. Bg2 {[%clk 0:03:01.9]} 9... Bb7 {[%clk 0:02:54.7]}
10. O-O {[%clk 0:03:02.6]} 10... Be7 {[%clk 0:02:47]} 11. d4 {[%clk 0:03:02.9]}
11... O-O {[%clk 0:02:46.2]} 12. Rd1 {[%clk 0:03:03.2]} 12... Qc8 {[%clk
0:02:46.2]} 13. c4 {[%clk 0:03:03.4]} 13... c5 {[%clk 0:02:46.2]} 14. d5 {[%clk
0:03:03.4]} 14... Re8 {[%clk 0:02:42.4]} 15. dxe6 {[%clk 0:03:02.3]} 15... Qxe6
{[%clk 0:02:40.9]} 16. Qxe6 {[%clk 0:03:01.9]} 16... fxe6 {[%clk 0:02:41.8]} 17.
Ne5 {[%clk 0:03:00.4]} 17... Bxg2 {[%clk 0:02:39.2]} 18. Kxg2 {[%clk 0:03:01.3]}
18... Rad8 {[%clk 0:01:49]} 19. Bf4 {[%clk 0:03:00.8]} 19... Kf8 {[%clk
0:01:26]} 20. Nc6 {[%clk 0:02:58.1]} 20... Rxd1 {[%clk 0:01:25]} 21. Rxd1 {[%clk
0:02:59]} 21... Rc8 {[%clk 0:01:25.7]} 22. Nxa7 {[%clk 0:02:45.8]} 22... Ra8
{[%clk 0:01:25.2]} 23. Nc6 {[%clk 0:02:46.3]} 23... Rxa2 {[%clk 0:01:23.9]} 24.
Be5 {[%clk 0:02:46.8]} 24... Ra4 {[%clk 0:01:11.1]} 25. b3 {[%clk 0:02:42.7]}
25... Ra3 {[%clk 0:01:11.4]} 26. Rd3 {[%clk 0:02:38.9]} 26... Ke8 {[%clk
0:00:34.8]} 27. Nxe7 {[%clk 0:02:33.1]} 27... Kxe7 {[%clk 0:00:35.7]} 28. Bd6+
{[%clk 0:02:33.6]} 28... Ke8 {[%clk 0:00:24.7]} 29. Kf3 {[%clk 0:02:34.3]} 29...
Nd7 {[%clk 0:00:22.8]} 30. g4 {[%clk 0:02:33.3]} 30... Kf7 {[%clk 0:00:15.8]}
31. h4 {[%clk 0:02:32]} 31... e5 {[%clk 0:00:16.1]} 32. Bc7 {[%clk 0:02:29.1]}
32... Ke6 {[%clk 0:00:16.1]} 33. g5 {[%clk 0:02:29.3]} 33... g6 {[%clk
0:00:08.1]} 34. Ke4 {[%clk 0:02:28.1]} 34... Ra2 {[%clk 0:00:07.3]} 35. Rd6+
{[%clk 0:02:26.6]} 35... Ke7 {[%clk 0:00:07]} 36. Kd5 {[%clk 0:02:27.3]} 36...
Rd2+ {[%clk 0:00:06.6]} 37. Kc6 {[%clk 0:02:27.3]} 37... Rxd6+ {[%clk
0:00:03.7]} 38. Bxd6+ {[%clk 0:02:28.1]} 38... Ke6 {[%clk 0:00:04.6]} 39. f3
{[%clk 0:02:28.8]} 1-0

[Event "Late-Titled-Tuesday-Blitz-February-20-2024"]
[Site "Chess.com"]
[Date "2024.02.20"]
[Round "6"]
[White "Pachonpower"]
[Black "shirovin"]
[Result "1-0"]
[WhiteElo "2320"]
[BlackElo "2093"]
[TimeControl "180+1"]
[EndTime "15:04:19 PST"]
[Termination "Pachonpower won on time"]

1. e4 {[%clk 0:03:00.9]} 1... c5 {[%clk 0:02:58.9]} 2. d4 {[%clk 0:02:57.9]}
2... cxd4 {[%clk 0:02:58.4]} 3. c3 {[%clk 0:02:57.3]} 3... dxc3 {[%clk
0:02:58.2]} 4. Nxc3 {[%clk 0:02:56.6]} 4... Nc6 {[%clk 0:02:58.8]} 5. Nf3 {[%clk
0:02:57.2]} 5... e6 {[%clk 0:02:59.1]} 6. Bc4 {[%clk 0:02:57.9]} 6... Qc7 {[%clk
0:02:58.7]} 7. O-O {[%clk 0:02:58.5]} 7... Nf6 {[%clk 0:02:58.7]} 8. Re1 {[%clk
0:02:58.4]} 8... Ng4 {[%clk 0:02:56.8]} 9. Nd5 {[%clk 0:02:57.7]} 9... Qb8
{[%clk 0:02:55.3]} 10. Bf4 {[%clk 0:02:56.2]} 10... Bd6 {[%clk 0:02:31]} 11.
Bxd6 {[%clk 0:02:55.4]} 11... Qxd6 {[%clk 0:02:28.1]} 12. Nf6+ {[%clk
0:02:54.2]} 12... Ke7 {[%clk 0:02:26.7]} 13. Qxd6+ {[%clk 0:02:53.1]} 13... Kxd6
{[%clk 0:02:26.3]} 14. Nxg4 {[%clk 0:02:53.7]} 14... h5 {[%clk 0:02:22.8]} 15.
Rad1+ {[%clk 0:02:53.1]} 15... Ke7 {[%clk 0:02:22]} 16. Nge5 {[%clk 0:02:51.7]}
16... d6 {[%clk 0:02:11.6]} 17. Nxc6+ {[%clk 0:02:50.6]} 17... bxc6 {[%clk
0:02:12.2]} 18. Rd2 {[%clk 0:02:48.5]} 18... Rd8 {[%clk 0:02:05.9]} 19. Bb3
{[%clk 0:02:47.4]} 19... Kf8 {[%clk 0:02:02.8]} 20. e5 {[%clk 0:02:43.7]} 20...
d5 {[%clk 0:02:02.6]} 21. Nd4 {[%clk 0:02:43.5]} 21... c5 {[%clk 0:01:59]} 22.
Nb5 {[%clk 0:02:43.6]} 22... Bd7 {[%clk 0:01:42.6]} 23. Nd6 {[%clk 0:02:41.9]}
23... a5 {[%clk 0:01:27.8]} 24. Bd1 {[%clk 0:02:40.9]} 24... a4 {[%clk
0:01:25.9]} 25. Bxh5 {[%clk 0:02:39.3]} 25... g6 {[%clk 0:01:21.6]} 26. Bd1
{[%clk 0:02:38]} 26... Ke7 {[%clk 0:01:05.9]} 27. h3 {[%clk 0:02:35]} 27... f6
{[%clk 0:01:05.2]} 28. f4 {[%clk 0:02:34.1]} 28... g5 {[%clk 0:01:04.1]} 29. Nb7
{[%clk 0:02:29.8]} 29... Rg8 {[%clk 0:01:01]} 30. exf6+ {[%clk 0:02:26.1]} 30...
Kxf6 {[%clk 0:01:00.4]} 31. fxg5+ {[%clk 0:02:26.8]} 31... Rxg5 {[%clk
0:00:50.8]} 32. Nxc5 {[%clk 0:02:27.7]} 32... Bc8 {[%clk 0:00:40.2]} 33. Bf3
{[%clk 0:02:26.9]} 33... Ra5 {[%clk 0:00:30]} 34. b4 {[%clk 0:02:16.7]} 34...
axb3 {[%clk 0:00:27.9]} 35. Nxb3 {[%clk 0:02:17.1]} 35... Ra4 {[%clk 0:00:23]}
36. Kf2 {[%clk 0:02:10.5]} 36... Ba6 {[%clk 0:00:17.8]} 37. Nc5 {[%clk 0:02:09]}
37... Ra5 {[%clk 0:00:15.9]} 38. Rxe6+ {[%clk 0:02:08.6]} 1-0

[Event "Late-Titled-Tuesday-Blitz-February-20-2024"]
[Site "Chess.com"]
[Date "2024.02.20"]
[Round "6"]
[White "McCarthyStone"]
[Black "yuriydovzik"]
[Result "1-0"]
[WhiteElo "2365"]
[BlackElo "2156"]
[TimeControl "180+1"]
[EndTime "15:04:23 PST"]
[Termination "McCarthyStone won by resignation"]

1. b3 {[%clk 0:02:46.3]} 1... a5 {[%clk 0:02:58.4]} 2. Bb2 {[%clk 0:02:47.2]}
2... a4 {[%clk 0:02:57]} 3. bxa4 {[%clk 0:02:47.8]} 3... Rxa4 {[%clk 0:02:53.3]}
4. Nf3 {[%clk 0:02:48.7]} 4... b6 {[%clk 0:02:45.7]} 5. g3 {[%clk 0:02:48.4]}
5... Bb7 {[%clk 0:02:44.8]} 6. Bg2 {[%clk 0:02:48.4]} 6... Nf6 {[%clk
0:02:41.8]} 7. d3 {[%clk 0:02:48.4]} 7... e6 {[%clk 0:02:38.5]} 8. O-O {[%clk
0:02:47.6]} 8... Be7 {[%clk 0:02:35.9]} 9. e4 {[%clk 0:02:47.4]} 9... Ra7 {[%clk
0:02:14.8]} 10. Re1 {[%clk 0:02:47]} 10... O-O {[%clk 0:02:09]} 11. Nbd2 {[%clk
0:02:45.8]} 11... Ba3 {[%clk 0:01:59.7]} 12. Bxa3 {[%clk 0:02:41.1]} 12... Rxa3
{[%clk 0:01:58.3]} 13. Nc4 {[%clk 0:02:42]} 13... Ra7 {[%clk 0:01:57.5]} 14. h4
{[%clk 0:02:42.6]} 14... d5 {[%clk 0:01:53.9]} 15. exd5 {[%clk 0:02:40.6]} 15...
Nxd5 {[%clk 0:01:48.7]} 16. Qd2 {[%clk 0:02:41.1]} 16... Nd7 {[%clk 0:01:42.5]}
17. h5 {[%clk 0:02:39.9]} 17... Qf6 {[%clk 0:01:34.9]} 18. a3 {[%clk 0:02:30.3]}
18... Rfa8 {[%clk 0:01:32.1]} 19. Rab1 {[%clk 0:02:27.9]} 19... c6 {[%clk
0:01:22.6]} 20. Nd6 {[%clk 0:02:11.8]} 20... b5 {[%clk 0:01:06.4]} 21. c4 {[%clk
0:02:06.2]} 21... Nc7 {[%clk 0:00:56]} 22. Ne4 {[%clk 0:02:03.4]} 22... Qe7
{[%clk 0:00:49.8]} 23. h6 {[%clk 0:02:03.7]} 23... Rxa3 {[%clk 0:00:32]} 24.
hxg7 {[%clk 0:02:03.6]} 24... f6 {[%clk 0:00:23.1]} 25. cxb5 {[%clk 0:01:53.4]}
25... cxb5 {[%clk 0:00:18.8]} 26. Nd4 {[%clk 0:01:39.3]} 26... Ra1 {[%clk
0:00:16.3]} 27. Rxa1 {[%clk 0:01:36.5]} 27... Rxa1 {[%clk 0:00:14.9]} 28. Rxa1
{[%clk 0:01:37.4]} 1-0

[Event "Late-Titled-Tuesday-Blitz-February-20-2024"]
[Site "Chess.com"]
[Date "2024.02.20"]
[Round "6"]
[White "kleopl"]
[Black "Franmu14"]
[Result "1/2-1/2"]
[WhiteElo "2512"]
[BlackElo "2674"]
[TimeControl "180+1"]
[EndTime "15:04:25 PST"]
[Termination "Game drawn by repetition"]

1. e4 {[%clk 0:03:00.9]} 1... e5 {[%clk 0:00:23.7]} 2. Nf3 {[%clk 0:02:57.3]}
2... Nc6 {[%clk 0:00:24.6]} 3. c3 {[%clk 0:02:56.8]} 3... Nf6 {[%clk 0:00:24.2]}
4. d4 {[%clk 0:02:56.8]} 4... exd4 {[%clk 0:00:25.1]} 5. e5 {[%clk 0:02:57]}
5... Nd5 {[%clk 0:00:24.7]} 6. cxd4 {[%clk 0:02:56.3]} 6... Bb4+ {[%clk
0:00:23.7]} 7. Bd2 {[%clk 0:02:55.8]} 7... Bxd2+ {[%clk 0:00:23.4]} 8. Qxd2
{[%clk 0:02:56.5]} 8... O-O {[%clk 0:00:23.5]} 9. Nc3 {[%clk 0:02:55.3]} 9...
Nxc3 {[%clk 0:00:23.5]} 10. bxc3 {[%clk 0:02:56.1]} 10... d5 {[%clk 0:00:24]}
11. Bd3 {[%clk 0:02:55.3]} 11... f6 {[%clk 0:00:24.4]} 12. O-O {[%clk
0:02:46.8]} 12... fxe5 {[%clk 0:00:24.3]} 13. Nxe5 {[%clk 0:02:47.7]} 13... Nxe5
{[%clk 0:00:24.2]} 14. dxe5 {[%clk 0:02:48.6]} 14... Bf5 {[%clk 0:00:23.8]} 15.
Bxf5 {[%clk 0:02:38.4]} 15... Rxf5 {[%clk 0:00:24.7]} 16. f4 {[%clk 0:02:38.4]}
16... c6 {[%clk 0:00:25.1]} 17. Rab1 {[%clk 0:02:34.1]} 17... b5 {[%clk
0:00:23.9]} 18. Kh1 {[%clk 0:02:29.4]} 18... Qh4 {[%clk 0:00:20.5]} 19. g3
{[%clk 0:02:26.8]} 19... Qh3 {[%clk 0:00:20]} 20. Qg2 {[%clk 0:02:24.1]} 20...
Qxg2+ {[%clk 0:00:20.3]} 21. Kxg2 {[%clk 0:02:25]} 21... g5 {[%clk 0:00:20.2]}
22. a4 {[%clk 0:02:11.7]} 22... a6 {[%clk 0:00:20.4]} 23. Rb4 {[%clk 0:02:09]}
23... gxf4 {[%clk 0:00:19.9]} 24. gxf4 {[%clk 0:02:08.8]} 24... Kf7 {[%clk
0:00:20.2]} 25. Ra1 {[%clk 0:02:06.5]} 25... Rg8+ {[%clk 0:00:21.1]} 26. Kf3
{[%clk 0:02:05.6]} 26... Rh5 {[%clk 0:00:21.3]} 27. axb5 {[%clk 0:02:04.5]}
27... Rh3+ {[%clk 0:00:21.5]} 28. Kf2 {[%clk 0:01:59]} 28... axb5 {[%clk
0:00:21.3]} 29. f5 {[%clk 0:01:37.7]} 29... Rxh2+ {[%clk 0:00:20.8]} 30. Kf3
{[%clk 0:01:37.2]} 30... Rh3+ {[%clk 0:00:21.3]} 31. Kf4 {[%clk 0:01:33]} 31...
Rh4+ {[%clk 0:00:21.8]} 32. Kf3 {[%clk 0:01:32.9]} 32... Rh3+ {[%clk 0:00:22.5]}
33. Kf4 {[%clk 0:01:31.9]} 33... Rh4+ {[%clk 0:00:22.9]} 34. Kf3 {[%clk
0:01:32]} 34... Rh3+ {[%clk 0:00:22.7]} 1/2-1/2

[Event "Late-Titled-Tuesday-Blitz-February-20-2024"]
[Site "Chess.com"]
[Date "2024.02.20"]
[Round "6"]
[White "platy3"]
[Black "slavenok"]
[Result "1-0"]
[WhiteElo "2953"]
[BlackElo "2752"]
[TimeControl "180+1"]
[EndTime "15:04:30 PST"]
[Termination "platy3 won by resignation"]

1. e4 {[%clk 0:02:59]} 1... c5 {[%clk 0:03:00.4]} 2. Nf3 {[%clk 0:02:57]} 2...
a6 {[%clk 0:03:00.9]} 3. g3 {[%clk 0:02:54.6]} 3... e6 {[%clk 0:03:01.2]} 4. Bg2
{[%clk 0:02:53.5]} 4... d5 {[%clk 0:03:01.8]} 5. Nc3 {[%clk 0:02:47.1]} 5...
dxe4 {[%clk 0:03:01.4]} 6. Nxe4 {[%clk 0:02:47.1]} 6... Nc6 {[%clk 0:03:02.1]}
7. O-O {[%clk 0:02:46.8]} 7... Be7 {[%clk 0:03:01.9]} 8. d3 {[%clk 0:02:35.7]}
8... Nf6 {[%clk 0:03:01.5]} 9. Qe2 {[%clk 0:02:35.6]} 9... O-O {[%clk
0:02:59.8]} 10. Bf4 {[%clk 0:02:35.7]} 10... Nd5 {[%clk 0:02:58.3]} 11. Bd2
{[%clk 0:02:34.3]} 11... Rb8 {[%clk 0:02:57.7]} 12. h4 {[%clk 0:02:32.5]} 12...
b5 {[%clk 0:02:57]} 13. a4 {[%clk 0:02:29.9]} 13... b4 {[%clk 0:02:56.6]} 14. h5
{[%clk 0:02:26.5]} 14... Bb7 {[%clk 0:02:55.2]} 15. h6 {[%clk 0:02:11.7]} 15...
g6 {[%clk 0:02:54.8]} 16. c3 {[%clk 0:02:07.9]} 16... a5 {[%clk 0:02:50.9]} 17.
Rad1 {[%clk 0:02:06.2]} 17... Nf6 {[%clk 0:02:46.2]} 18. Bf4 {[%clk 0:02:05.1]}
18... Rc8 {[%clk 0:02:39.4]} 19. Ne5 {[%clk 0:02:02.2]} 19... Nxe5 {[%clk
0:02:36.5]} 20. Nxf6+ {[%clk 0:01:58.4]} 20... Bxf6 {[%clk 0:02:36.8]} 21. Bxb7
{[%clk 0:01:59.2]} 21... Rb8 {[%clk 0:02:14.6]} 22. d4 {[%clk 0:01:51.9]} 22...
cxd4 {[%clk 0:02:05.8]} 23. cxd4 {[%clk 0:01:45.9]} 23... Nd7 {[%clk 0:01:54.4]}
24. Bxb8 {[%clk 0:01:45.5]} 24... Qxb8 {[%clk 0:01:54.4]} 25. Bf3 {[%clk
0:01:43.5]} 25... Nb6 {[%clk 0:01:47.9]} 26. Qb5 {[%clk 0:01:42]} 26... Qa7
{[%clk 0:01:45.8]} 27. d5 {[%clk 0:01:34.5]} 27... e5 {[%clk 0:01:38.9]} 28. d6
{[%clk 0:01:32.2]} 28... Rd8 {[%clk 0:01:21.4]} 29. Rc1 {[%clk 0:01:30.6]} 29...
e4 {[%clk 0:01:06.5]} 30. Bxe4 {[%clk 0:01:22.9]} 30... Bxb2 {[%clk 0:01:03.6]}
31. Rc7 {[%clk 0:01:22]} 31... Qb8 {[%clk 0:01:00.2]} 32. Rb7 {[%clk 0:01:05.6]}
32... Qxd6 {[%clk 0:00:59.8]} 33. Qxb6 {[%clk 0:01:04]} 33... Qd2 {[%clk
0:00:51.9]} 34. Rb8 {[%clk 0:01:01.9]} 1-0

[Event "Late-Titled-Tuesday-Blitz-February-20-2024"]
[Site "Chess.com"]
[Date "2024.02.20"]
[Round "6"]
[White "Zavgorodniy_Sergiy"]
[Black "cthulhuuu"]
[Result "1-0"]
[WhiteElo "2628"]
[BlackElo "2429"]
[TimeControl "180+1"]
[EndTime "15:04:31 PST"]
[Termination "Zavgorodniy_Sergiy won on time"]

1. e4 {[%clk 0:03:00.9]} 1... d6 {[%clk 0:02:59.4]} 2. d4 {[%clk 0:03:00.3]}
2... Nf6 {[%clk 0:02:59.5]} 3. f3 {[%clk 0:02:59.9]} 3... e5 {[%clk 0:02:52.8]}
4. c3 {[%clk 0:02:58.3]} 4... Be7 {[%clk 0:02:52]} 5. Be3 {[%clk 0:02:57.9]}
5... O-O {[%clk 0:02:52]} 6. Bc4 {[%clk 0:02:56.8]} 6... c6 {[%clk 0:02:52]} 7.
Bb3 {[%clk 0:02:56.6]} 7... b5 {[%clk 0:02:46.4]} 8. Ne2 {[%clk 0:02:55.7]} 8...
a5 {[%clk 0:02:45.7]} 9. a4 {[%clk 0:02:54.7]} 9... b4 {[%clk 0:02:45.2]} 10.
Nd2 {[%clk 0:02:52.9]} 10... Ba6 {[%clk 0:02:44.2]} 11. Nc4 {[%clk 0:02:48.6]}
11... exd4 {[%clk 0:02:32.2]} 12. cxd4 {[%clk 0:02:48.1]} 12... d5 {[%clk
0:02:32.1]} 13. exd5 {[%clk 0:02:45.9]} 13... Nxd5 {[%clk 0:02:16.8]} 14. Bf2
{[%clk 0:02:44.6]} 14... Bg5 {[%clk 0:02:06.2]} 15. O-O {[%clk 0:02:27.1]} 15...
Bxc4 {[%clk 0:01:44.2]} 16. Bxc4 {[%clk 0:02:26.4]} 16... Ne3 {[%clk 0:01:44.8]}
17. Bxe3 {[%clk 0:02:25.9]} 17... Bxe3+ {[%clk 0:01:45.7]} 18. Kh1 {[%clk
0:02:26.5]} 18... Nd7 {[%clk 0:01:42.8]} 19. Qd3 {[%clk 0:02:21.7]} 19... Re8
{[%clk 0:01:29.9]} 20. Rad1 {[%clk 0:02:20]} 20... Nb6 {[%clk 0:01:27.5]} 21.
Bb3 {[%clk 0:02:18]} 21... Nd5 {[%clk 0:01:27]} 22. Ng3 {[%clk 0:02:15.4]} 22...
g6 {[%clk 0:01:19.8]} 23. Ne4 {[%clk 0:02:14.2]} 23... f5 {[%clk 0:01:11.8]} 24.
Nc5 {[%clk 0:02:13.1]} 24... Qh4 {[%clk 0:00:57.2]} 25. g3 {[%clk 0:02:09]}
25... Qf6 {[%clk 0:00:28]} 26. Rfe1 {[%clk 0:02:07.6]} 26... Bf2 {[%clk
0:00:28.1]} 27. Rf1 {[%clk 0:01:54.3]} 27... Be3 {[%clk 0:00:19.9]} 28. f4
{[%clk 0:01:54.6]} 28... Kh8 {[%clk 0:00:18.6]} 29. Rf3 {[%clk 0:01:53.4]} 29...
Qe7 {[%clk 0:00:02.9]} 30. Bxd5 {[%clk 0:01:45.3]} 30... cxd5 {[%clk 0:00:02.3]}
31. Re1 {[%clk 0:01:45.9]} 31... Rac8 {[%clk 0:00:01]} 32. Rfxe3 {[%clk
0:01:44.3]} 1-0

[Event "Late-Titled-Tuesday-Blitz-February-20-2024"]
[Site "Chess.com"]
[Date "2024.02.20"]
[Round "6"]
[White "SRob2003"]
[Black "janhelmer03"]
[Result "1-0"]
[WhiteElo "2659"]
[BlackElo "2283"]
[TimeControl "180+1"]
[EndTime "15:04:35 PST"]
[Termination "SRob2003 won on time"]

1. e4 {[%clk 0:02:59.5]} 1... c5 {[%clk 0:02:55.3]} 2. Nf3 {[%clk 0:02:59.5]}
2... d6 {[%clk 0:02:55.7]} 3. d4 {[%clk 0:02:59.7]} 3... cxd4 {[%clk 0:02:56.1]}
4. Nxd4 {[%clk 0:03:00.6]} 4... Nf6 {[%clk 0:02:55.8]} 5. Nc3 {[%clk 0:03:01.1]}
5... g6 {[%clk 0:02:53]} 6. Be3 {[%clk 0:02:59.4]} 6... Bg7 {[%clk 0:02:53.4]}
7. f3 {[%clk 0:02:59.5]} 7... O-O {[%clk 0:02:52.3]} 8. Qd2 {[%clk 0:02:59.8]}
8... Nc6 {[%clk 0:02:52.3]} 9. O-O-O {[%clk 0:03:00]} 9... d5 {[%clk 0:02:50.7]}
10. exd5 {[%clk 0:03:00.3]} 10... Nxd5 {[%clk 0:02:50.6]} 11. Nxc6 {[%clk
0:02:58.8]} 11... bxc6 {[%clk 0:02:51.5]} 12. Bd4 {[%clk 0:02:58.7]} 12... e5
{[%clk 0:02:52.1]} 13. Bc5 {[%clk 0:02:58.7]} 13... Re8 {[%clk 0:02:52.9]} 14.
Ne4 {[%clk 0:02:56.8]} 14... Qc7 {[%clk 0:01:30.9]} 15. h4 {[%clk 0:02:55.6]}
15... f5 {[%clk 0:01:24.6]} 16. Nd6 {[%clk 0:02:54.6]} 16... Rd8 {[%clk
0:01:21.8]} 17. Nxc8 {[%clk 0:02:54.6]} 17... Raxc8 {[%clk 0:01:22.4]} 18. h5
{[%clk 0:02:54.8]} 18... e4 {[%clk 0:01:13.5]} 19. hxg6 {[%clk 0:02:42]} 19...
hxg6 {[%clk 0:01:02.5]} 20. Bc4 {[%clk 0:02:36.1]} 20... Qe5 {[%clk 0:01:01.6]}
21. c3 {[%clk 0:02:12.2]} 21... Rb8 {[%clk 0:00:30.9]} 22. Bd4 {[%clk
0:02:03.2]} 22... Qe7 {[%clk 0:00:18.2]} 23. fxe4 {[%clk 0:01:58.5]} 23... fxe4
{[%clk 0:00:17.9]} 24. Bxg7 {[%clk 0:01:40]} 24... Qxg7 {[%clk 0:00:18.8]} 25.
Qg5 {[%clk 0:01:40.3]} 25... e3 {[%clk 0:00:05]} 26. Rxd5 {[%clk 0:01:34]} 26...
cxd5 {[%clk 0:00:04.2]} 27. Bxd5+ {[%clk 0:01:34.9]} 27... Rxd5 {[%clk
0:00:04.5]} 28. Qxd5+ {[%clk 0:01:35.2]} 28... Qf7 {[%clk 0:00:03.9]} 29. Rh8+
{[%clk 0:01:34.5]} 1-0

[Event "Late-Titled-Tuesday-Blitz-February-20-2024"]
[Site "Chess.com"]
[Date "2024.02.20"]
[Round "6"]
[White "harkow"]
[Black "ACollins05"]
[Result "0-1"]
[WhiteElo "2426"]
[BlackElo "2590"]
[TimeControl "180+1"]
[EndTime "15:04:36 PST"]
[Termination "ACollins05 won on time"]

1. d4 {[%clk 0:03:00.9]} 1... d5 {[%clk 0:02:59.7]} 2. c4 {[%clk 0:03:00.8]}
2... e6 {[%clk 0:02:59.1]} 3. Nf3 {[%clk 0:03:01.1]} 3... Nf6 {[%clk 0:02:59]}
4. Nc3 {[%clk 0:03:01.6]} 4... Be7 {[%clk 0:02:58.6]} 5. cxd5 {[%clk 0:03:01.9]}
5... exd5 {[%clk 0:02:56.1]} 6. Bg5 {[%clk 0:03:02]} 6... c6 {[%clk 0:02:55.1]}
7. e3 {[%clk 0:03:02.4]} 7... Bf5 {[%clk 0:02:54.8]} 8. Be2 {[%clk 0:03:00.9]}
8... O-O {[%clk 0:02:54.5]} 9. O-O {[%clk 0:03:00.7]} 9... Nbd7 {[%clk
0:02:54.7]} 10. a3 {[%clk 0:02:59]} 10... a5 {[%clk 0:02:54.4]} 11. Rc1 {[%clk
0:02:57.7]} 11... Re8 {[%clk 0:02:53.1]} 12. h3 {[%clk 0:02:52.1]} 12... Ne4
{[%clk 0:02:51.5]} 13. Bf4 {[%clk 0:02:52.2]} 13... Bd6 {[%clk 0:02:36.7]} 14.
Bxd6 {[%clk 0:02:44]} 14... Nxd6 {[%clk 0:02:37.6]} 15. b4 {[%clk 0:02:39.9]}
15... axb4 {[%clk 0:02:36.6]} 16. axb4 {[%clk 0:02:40.8]} 16... b5 {[%clk
0:02:32.8]} 17. Bd3 {[%clk 0:02:30.2]} 17... Bxd3 {[%clk 0:02:30.9]} 18. Qxd3
{[%clk 0:02:31.1]} 18... Nc4 {[%clk 0:02:31.5]} 19. Ne2 {[%clk 0:02:31]} 19...
Qe7 {[%clk 0:02:29.9]} 20. Rb1 {[%clk 0:02:29.2]} 20... Ra4 {[%clk 0:02:29.5]}
21. Qb3 {[%clk 0:02:25.6]} 21... Ra3 {[%clk 0:02:25.4]} 22. Qc2 {[%clk 0:02:19]}
22... Rea8 {[%clk 0:02:24.8]} 23. Nf4 {[%clk 0:02:15.9]} 23... R8a4 {[%clk
0:02:17.1]} 24. Nd3 {[%clk 0:02:13]} 24... Ra2 {[%clk 0:02:14.6]} 25. Qc1 {[%clk
0:02:09.7]} 25... R4a3 {[%clk 0:02:03.8]} 26. Rd1 {[%clk 0:01:58.1]} 26... Qe4
{[%clk 0:01:52.2]} 27. Nc5 {[%clk 0:01:43.6]} 27... Nxc5 {[%clk 0:01:51.3]} 28.
dxc5 {[%clk 0:01:37]} 28... Rc2 {[%clk 0:01:43.6]} 29. Qxa3 {[%clk 0:01:28.9]}
29... Nxa3 {[%clk 0:01:43]} 30. Rd4 {[%clk 0:01:28.9]} 30... Nxb1 {[%clk
0:01:34.5]} 0-1

[Event "Late-Titled-Tuesday-Blitz-February-20-2024"]
[Site "Chess.com"]
[Date "2024.02.20"]
[Round "6"]
[White "Mesa_1"]
[Black "OverallStranger"]
[Result "1-0"]
[WhiteElo "2554"]
[BlackElo "2358"]
[TimeControl "180+1"]
[EndTime "15:04:37 PST"]
[Termination "Mesa_1 won by resignation"]

1. d4 {[%clk 0:03:00.9]} 1... e6 {[%clk 0:02:59.8]} 2. c4 {[%clk 0:03:01.2]}
2... f5 {[%clk 0:02:59.8]} 3. Nf3 {[%clk 0:02:54.3]} 3... Nf6 {[%clk 0:03:00.2]}
4. Nc3 {[%clk 0:02:54.6]} 4... c6 {[%clk 0:03:00.4]} 5. Bf4 {[%clk 0:02:52.4]}
5... d5 {[%clk 0:03:00.4]} 6. e3 {[%clk 0:02:51]} 6... Be7 {[%clk 0:02:57]} 7.
Bd3 {[%clk 0:02:49.1]} 7... O-O {[%clk 0:02:56.4]} 8. O-O {[%clk 0:02:49.6]}
8... Qe8 {[%clk 0:02:53.7]} 9. Rc1 {[%clk 0:02:47.2]} 9... h6 {[%clk 0:02:50.9]}
10. Qc2 {[%clk 0:02:35.2]} 10... g5 {[%clk 0:02:48.6]} 11. Bg3 {[%clk
0:02:26.6]} 11... Qh5 {[%clk 0:02:43]} 12. Ne5 {[%clk 0:02:21.9]} 12... Nbd7
{[%clk 0:02:36.4]} 13. cxd5 {[%clk 0:02:17.3]} 13... cxd5 {[%clk 0:02:28.1]} 14.
Nb5 {[%clk 0:02:16.1]} 14... Nxe5 {[%clk 0:02:26.6]} 15. dxe5 {[%clk 0:01:58.5]}
15... Nd7 {[%clk 0:02:12.6]} 16. Nc7 {[%clk 0:01:52.4]} 16... Rb8 {[%clk
0:01:49.5]} 17. Nxe6 {[%clk 0:01:51.2]} 17... f4 {[%clk 0:01:50.2]} 18. exf4
{[%clk 0:01:43.9]} 18... gxf4 {[%clk 0:01:49.6]} 19. Nxf4 {[%clk 0:01:40.6]}
19... Qe8 {[%clk 0:01:49]} 20. Bh7+ {[%clk 0:01:37.5]} 20... Kg7 {[%clk
0:01:47.9]} 21. Ne6+ {[%clk 0:01:34.2]} 21... Kh8 {[%clk 0:01:48.1]} 22. Nxf8
{[%clk 0:01:33.1]} 22... Nxf8 {[%clk 0:01:49]} 23. e6 {[%clk 0:01:31.5]} 23...
Nxh7 {[%clk 0:01:42.1]} 24. Bxb8 {[%clk 0:01:26]} 24... Bxe6 {[%clk 0:01:42.3]}
25. Rfe1 {[%clk 0:01:23.2]} 25... Ng5 {[%clk 0:01:29.5]} 26. h4 {[%clk
0:01:06.2]} 26... Ne4 {[%clk 0:01:27.9]} 27. Rxe4 {[%clk 0:01:05.5]} 27... dxe4
{[%clk 0:01:22.5]} 28. Qxe4 {[%clk 0:01:06.4]} 28... Bc5 {[%clk 0:00:52.5]} 29.
Rxc5 {[%clk 0:00:54.5]} 29... Qf8 {[%clk 0:00:49.5]} 30. Be5+ {[%clk 0:00:49.8]}
30... Kg8 {[%clk 0:00:49.1]} 31. Qg6+ {[%clk 0:00:49.7]} 1-0